[Event "German Championship Women 2022"]
[Site "Magdeburg"]
[Date "2022.08.16"]
[Round "4.3"]
[White "Birkholz, Olga"]
[Black "Bazzazi, Elnaz"]
[Result "1-0"]
[ECO "D02"]
[WhiteElo "2002"]
[BlackElo "1766"]
[Annotator "TA"]
[PlyCount "201"]
[EventDate "2022.08.14"]
[EventType "swiss"]
[EventCountry "GER"]
[SourceTitle "playchess.com"]
[Source "ChessBase"]
[SourceQuality "1"]
[TimeControl "40/5400+30:1800+30"]

{[%evp 11,201,-1,25,14,27,11,42,43,43,53,161,18,65,60,70,0,43,52,26,0,43,41,65,29,53,44,49,0,7,-54,-50,-54,-39,-64,-25,-18,-28,-33,-14,-47,-43,-53,0,-50,-42,-39,-31,-42,-17,-29,0,-25,-22,-49,-27,-50,-31,-24,0,-60,-42,-40,-34,-50,-25,-52,-6,-55,0,0,0,-23,0,-40,0,-61,-23,-33,0,-36,-20,-45,-46,-45,-44,-52,-53,-55,-54,-54,-54,-53,-12,-62,-27,-55,-27,-54,-13,-86,-34,-56,0,-37,0,-47,0,-34,0,-36,0,-7,0,-157,-93,-139,-114,-141,0,5,6,0,13,11,15,8,8,8,8,8,8,8,8,8,8,8,91,94,83,83,682,673,661,628,527,508,362,83,673,732,721,706,706,706,684,609,594,568,566,543,535,33,33,33,658,646,583,520,514,0,359,230,659,140,140,140,5782,5552,29959,29962,29957,5724,29980,29981,29981,29982,29981,29982,29982,29983,29982,29983]} 1. Nf3 {[%emt 0:00:01]} d5 {[%emt 0:00:09]} 2. d4 {[%emt 0:00:04]} Nf6 {[%emt 0:00:12]} 3. Bf4 {[%emt 0:00:12]} e6 {[%emt 0:00:43]} 4. Nbd2 {[%emt 0:00:27]} c5 {[%emt 0:00:58]} 5. e3 {[%emt 0:00:34]} Nc6 {[%emt 0:03:06]} 6. c3 {[%emt 0:00:29]} b6 {[%emt 0:02:15]} 7. Bd3 {[%emt 0:03:24] D02: 1 d4 d5 2 Nf3 sidelines, including 2...Nf6 3 g3 and 2...Nf6 3 Bf4.} Bd6 {[%emt 0:04:04]} 8. Ne5 {[%emt 0:12:39] [#]} Ne7 $146 {[%emt 0:08:42]} ({Predecessor:} 8... Bb7 9. Nxc6 Bxc6 10. Bxd6 Qxd6 11. f4 O-O 12. Qf3 a6 13. g4 Bb5 14. Bc2 cxd4 15. exd4 {0-1 (35) Mollo,J (2073)-Devanshi,R (1559) Tornelo INT 2021}) 9. Bb5+ {[%emt 0:03:04] White is slightly better.} Kf8 {[%emt 0:00:19]} 10. Qf3 {[%emt 0:01:27]} Qc7 {[%emt 0:04:28] [#]} (10... Ng6 $14) 11. Bd3 {[%emt 0:06:35]} (11. Ndc4 $1 $18 {[%cal Rc4d6]} dxc4 12. Qxa8 cxd4 13. cxd4 (13. exd4 g5 $18)) 11... Ng6 {[%emt 0:01:05]} (11... Bb7 $11 {should be considered.}) 12. Bxg6 $14 {[%emt 0:03:04] 0x0.0002db04a6ebdp-1022s more active pieces. The black rooks are badly placed.} hxg6 {[%emt 0:00:22]} 13. g4 {[%emt 0:00:31]} (13. Ndc4 $1 $14 Bxe5 14. Nxe5) 13... Bxe5 {[%emt 0:10:19]} 14. Bxe5 {[%emt 0:00:45]} Qe7 {[%emt 0:00:14]} 15. O-O-O {[%emt 0:04:05]} Bb7 {[%emt 0:03:39]} 16. Qg3 {[%emt 0:04:41]} (16. h4 {with more complications.} Nd7 17. Nc4 Kg8 18. Bd6) 16... Qd7 {[%emt 0:09:16]} 17. f3 {[%emt 0:08:11]} Qc6 {[%emt 0:08:55]} 18. Bxf6 {[%emt 0:12:42]} gxf6 {[%emt 0:00:07]} 19. Qf4 {[%emt 0:00:01]} (19. h4 $14 {deserves consideration.}) 19... Ke7 {[%emt 0:01:43]} 20. g5 {[%emt 0:00:44]} (20. h4 $11) 20... fxg5 $15 {[%emt 0:00:28]} 21. Qxg5+ {[%emt 0:00:09]} Ke8 {[%emt 0:03:16]} ({Don't play} 21... Kd7 22. dxc5 Rh5 23. Qf6 $11) 22. Rde1 {[%emt 0:04:24]} Kd7 {[%emt 0:04:02]} 23. Qf6 {[%emt 0:06:55]} Raf8 {[%emt 0:02:13]} 24. h4 {[%emt 0:01:29]} Qd6 {[%emt 0:03:39]} 25. Reg1 {[%emt 0:06:33]} Qe7 {[%emt 0:01:49]} 26. Qf4 {[%emt 0:00:19]} Qd6 {[%emt 0:02:53]} (26... cxd4 $15 27. Qxd4 Kc8) 27. Qg4 {[%emt 0:01:11]} (27. Qf6 $11) 27... Rh5 {[%emt 0:01:11]} 28. f4 {[%emt 0:00:29]} Ba6 {[%emt 0:02:03]} 29. Nf3 {[%emt 0:00:26]} Ke7 {[%emt 0:04:14]} 30. Ne5 {[%emt 0:00:21] Inhibits Bd3.} Bc4 {[%emt 0:02:50]} 31. Kc2 {[%emt 0:03:42]} Bb5 {[%emt 0:02:53]} 32. Qf3 {[%emt 0:02:48][%cal Og1g6]} Rfh8 {[%emt 0:01:27]} 33. Qf2 {[%emt 0:03:52]} Be8 {[%emt 0:00:32]} 34. Rg5 {[%emt 0:02:41]} R5h6 {[%emt 0:00:39]} 35. Nf3 {[%emt 0:02:54]} (35. Qg3 $11) 35... f6 {[%emt 0:00:40]} 36. Rgg1 {[%emt 0:00:27][%cal Bg5g1,Bg1e1,Be1e2,Be2g2][%mdl 32]} c4 {[%emt 0:01:14]} 37. Kc1 {[%emt 0:00:34]} Rh5 {[%emt 0:01:52]} 38. Re1 {[%emt 0:00:14]} Kd8 {[%emt 0:01:15]} (38... b5 $15) 39. Rhg1 {[%emt 0:01:34]} (39. Nd2 $11) 39... Qf8 {[%emt 0:00:45]} (39... b5 $15) 40. Qg3 {[%emt 0:00:54]} Qd6 {[%emt 0:02:16]} 41. Re2 {[%emt 0:31:28]} Rg8 {[%emt 0:32:58]} 42. Reg2 {[%emt 0:02:05]} Rgh8 {[%emt 0:01:16][%cal Bg8h8,Bh8h7,Bh7g7][%mdl 32]} 43. Qe1 {[%emt 0:02:01]} (43. Re2 $11) 43... Qc6 {[%emt 0:03:01]} 44. Re2 $1 {[%emt 0:00:00]} Qd6 {[%emt 0:00:00]} 45. Qd2 {[%emt 0:00:00]} R5h6 {[%emt 0:00:00]} 46. Reg2 {[%emt 0:00:00]} Qc6 {[%emt 0:00:00]} 47. Qc2 {[%emt 0:00:00]} R8h7 {[%emt 0:00:00]} 48. Rd1 {[%emt 0:00:00]} Qa4 {[%emt 0:00:00]} 49. Qxa4 {[%emt 0:00:00]} Bxa4 {[%emt 0:00:00]} 50. Rdg1 {[%emt 0:00:00]} Be8 {[%emt 0:00:00]} 51. b3 {[%emt 0:00:00]} Rg7 {[%emt 0:00:00]} 52. Kd2 {[%emt 0:00:00]} ({White should try} 52. bxc4 $11 Rc7 53. c5 (53. cxd5 Rxc3+ 54. Kd2 Ra3 $11)) 52... b5 {[%emt 0:00:00]} 53. Rb1 {[%emt 0:00:00]} Kc7 {[%emt 0:00:00]} 54. Ke1 {[%emt 0:00:00]} Kb6 {[%emt 0:00:00]} 55. Kf2 {[%emt 0:00:00]} (55. bxc4 $11 dxc4 56. a4) 55... Bc6 {[%emt 0:00:00]} (55... cxb3 $17 56. axb3 Rc7) 56. Rbg1 {[%emt 0:00:00]} Be8 {[%emt 0:00:00]} (56... a6 $15) 57. bxc4 {[%emt 0:00:00]} dxc4 {[%emt 0:00:00]} 58. Rh2 {[%emt 0:00:00]} (58. e4 $11) 58... a5 {[%emt 0:00:00]} (58... Bc6 $15 {was preferrable.}) 59. Nd2 {[%emt 0:00:00]} g5 {[%emt 0:00:00]} 60. Rg4 {[%emt 0:04:08]} Rh5 {[%emt 0:01:03]} (60... Rhh7 {is more complex.} 61. a4 Bh5 62. Rgg2 gxf4 63. exf4 bxa4 64. Nxc4+ Kb5) 61. fxg5 {[%emt 0:00:26]} fxg5 {[%emt 0:00:21]} 62. Kg3 $2 {[%emt 0:00:11] [#]} (62. Ne4 $11) 62... gxh4+ $1 $17 {[%emt 0:01:28]} 63. Rhxh4 {[%emt 0:00:02]} Rxg4+ {[%emt 0:01:54]} 64. Kxg4 {[%emt 0:00:20][%mdl 4096] Endgame KRB-KRN} Rf5 {[%emt 0:02:46]} (64... Rxh4+ $17 65. Kxh4 Kc7) 65. Rh6 $11 {[%emt 0:00:34]} Bd7 {[%emt 0:00:01]} 66. Kg3 {[%emt 0:00:12]} Kc6 {[%emt 0:00:42]} 67. e4 {[%emt 0:00:11]} Rf8 {[%emt 0:00:38]} 68. Nf3 {[%emt 0:00:34]} (68. a3 $5 {[%cal Rd2f3]}) 68... b4 {[%emt 0:00:47]} 69. Ne5+ {[%emt 0:00:42]} Kc7 {[%emt 0:00:19]} 70. cxb4 {[%emt 0:01:23] Strongly threatening Rh7.} c3 {[%emt 0:01:03] Threatens to win with ...Bb5.} 71. Nxd7 {[%emt 0:01:16]} Kxd7 {[%emt 0:00:30]} 72. bxa5 {[%emt 0:00:23] KR-KR} c2 {[%emt 0:01:43]} 73. Rh1 {[%emt 0:00:11] next Rc1 is good for White.} Rc8 {[%emt 0:00:28]} (73... e5 $11 {remains equal.} 74. dxe5 Rb8) 74. Rc1 $16 {[%emt 0:00:01]} Rc3+ {[%emt 0:00:35]} 75. Kf4 {[%emt 0:00:07]} Rc6 $2 {[%emt 0:00:49][%mdl 8192]} (75... Kd6 $16) 76. Ke3 $18 {[%emt 0:00:20]} Rc3+ {[%emt 0:02:07]} 77. Kd2 {[%emt 0:00:03]} Ra3 {[%emt 0:00:21]} 78. Rxc2 {[%emt 0:00:08]} Rxa5 {[%emt 0:00:01]} 79. Ke3 $2 {[%emt 0:01:04]} (79. Kc3 $18 {and the rest is easy.}) 79... Kd6 $2 {[%emt 0:00:56][%mdl 8192]} (79... Ra3+ $16 80. Kf4 Kd6) 80. e5+ {[%emt 0:00:59]} Kd7 {[%emt 0:00:02]} 81. Ke4 {[%emt 0:00:11]} Ra3 {[%emt 0:00:31]} 82. Rd2 {[%emt 0:00:33]} Ra4 {[%emt 0:00:03]} 83. Kd3 {[%emt 0:00:24]} Kc6 {[%emt 0:00:40]} 84. Rc2+ Kd7 85. Kc3 {[%emt 0:00:35]} Ra8 {[%emt 0:01:32]} 86. Rh2 $2 {[%emt 0:01:34]} (86. Kc4 $18 Rc8+ 87. Kd3) 86... Kc6 $1 $14 {[%emt 0:00:23]} 87. Rb2 {[%emt 0:02:28]} Ra5 $2 {[%emt 0:01:04][%mdl 8192]} (87... Kd5 $14) 88. Rc2 $18 {[%emt 0:01:04] Kb4+ would kill now.} Ra8 {[%emt 0:00:11]} 89. Kd3+ {[%emt 0:00:12]} Kd7 {[%emt 0:00:01]} 90. Ke4 {[%emt 0:00:08]} Ra3 $1 {[%emt 0:00:14]} 91. Rh2 {[%emt 0:00:13] Kf4 is the strong threat.} Kc6 $2 {[%emt 0:00:02]} (91... Ra4 92. Kd3 Kc7) 92. Rh6 $2 {[%emt 0:00:36]} (92. Rh7 $18 {is more deadly. Black must now prevent Re7.} Rg3 93. Re7) 92... Kd7 $16 {[%emt 0:00:26]} 93. Rh7+ {[%emt 0:00:22]} Kc6 $2 {[%emt 0:00:02][%mdl 8192]} (93... Ke8 $16) 94. Re7 $18 {[%emt 0:00:24]} Rxa2 {[%emt 0:00:24]} 95. Rxe6+ {[%emt 0:00:04]} Kd7 {[%emt 0:00:05]} 96. Rh6 {[%emt 0:00:27]} (96. Rd6+ $142 Ke7 97. Rh6 Ra4 98. Rh7+ Ke6 99. Rb7 Rc4 100. Rb6+ Kd7 101. e6+ Kc7 102. Ra6) 96... Re2+ {[%emt 0:00:22]} 97. Kd5 {[%emt 0:00:11] White mates.} Ra2 {[%emt 0:00:17]} 98. Rh7+ {[%emt 0:00:06]} Ke8 {[%emt 0:00:17]} 99. Ke6 {[%emt 0:00:34][%cal Rh7h8]} Ra6+ {[%emt 0:00:02]} 100. Kf5 {[%emt 0:00:10]} Ra1 {[%emt 0:00:10]} 101. d5 {[%emt 0:00:23] Weighted Error Value: White=0.28 (precise) /Black=0.25 (precise)} 1-0

[Event "German Championship Women 2022"]
[Site "Magdeburg"]
[Date "2022.08.16"]
[Round "4.4"]
[White "Moenster, Madita"]
[Black "Zhou, Lepu Coco"]
[Result "1-0"]
[ECO "B40"]
[WhiteElo "1864"]
[BlackElo "1986"]
[Annotator "NA RC"]
[PlyCount "73"]
[EventDate "2022.08.14"]
[EventType "swiss"]
[EventCountry "GER"]
[SourceTitle "playchess.com"]
[Source "ChessBase"]
[SourceQuality "1"]
[TimeControl "40/5400+30:1800+30"]

1. e4 c5 2. Nf3 e6 3. d4 cxd4 4. Nxd4 Nf6 5. Nc3 Nc6 6. Nxc6 bxc6 7. e5 Nd5 8. Ne4 Qc7 9. f4 Qb6 10. c4 Bb4+ 11. Ke2 f5 12. Nf2 Ne7 13. Nd3 Bc5 14. Nxc5 Qxc5 15. b3 Ba6 16. Be3 Qa5 17. Kf2 Qc7 18. Be2 g5 19. g3 gxf4 20. gxf4 Ng6 21. h4 Rg8 22. h5 Ne7 23. Qd6 Qxd6 24. exd6 Nc8 25. Rhg1 Rxg1 26. Rxg1 Kf7 27. c5 Bxe2 28. Kxe2 a5 29. Bd4 a4 30. Rg7+ Kf8 31. Rxd7 axb3 32. axb3 Na7 33. Rxh7 Nb5 34. Rh8+ Kf7 35. Rxa8 Nxd4+ 36. Ke3 e5 37. fxe5 1-0

[Event "German Championship Women 2022"]
[Site "Magdeburg"]
[Date "2022.08.16"]
[Round "4.5"]
[White "Falke, Ornella"]
[Black "Basovskiy, Jana"]
[Result "1-0"]
[ECO "A05"]
[WhiteElo "1912"]
[BlackElo "1867"]
[Annotator "NA RC"]
[PlyCount "99"]
[EventDate "2022.08.14"]
[EventType "swiss"]
[EventCountry "GER"]
[SourceTitle "playchess.com"]
[Source "ChessBase"]
[SourceQuality "1"]
[TimeControl "40/5400+30:1800+30"]

1. Nf3 {[%emt 0:00:04]} Nf6 {[%emt 0:00:06]} 2. c4 {[%emt 0:00:11]} Nc6 {[%emt 0:00:04]} 3. d4 {[%emt 0:01:30]} e6 {[%emt 0:00:05]} 4. a3 {[%emt 0:01:15]} d6 {[%emt 0:00:19]} 5. Nc3 {[%emt 0:00:28]} g6 {[%emt 0:00:05]} 6. g3 {[%emt 0:01:38]} Bg7 {[%emt 0:00:08]} 7. Bg2 {[%emt 0:00:08]} O-O {[%emt 0:00:20]} 8. O-O Re8 {[%emt 0:00:28]} 9. e3 {[%emt 0:06:02]} d5 {[%emt 0:11:07]} 10. Qe2 {[%emt 0:03:42]} Na5 {[%emt 0:12:20]} 11. Nd2 {[%emt 0:01:02]} Nxc4 {[%emt 0:07:39]} 12. Nxc4 {[%emt 0:00:11]} dxc4 {[%emt 0:00:03]} 13. Qxc4 {[%emt 0:00:58]} c6 {[%emt 0:00:55]} 14. Rd1 {[%emt 0:07:23]} Qe7 {[%emt 0:00:59]} 15. e4 {[%emt 0:04:30]} h6 {[%emt 0:05:20]} 16. h3 {[%emt 0:06:54]} Bd7 {[%emt 0:01:01]} 17. Be3 {[%emt 0:01:37]} Rad8 {[%emt 0:02:07]} 18. b4 {[%emt 0:02:08]} a6 {[%emt 0:04:19]} 19. f4 {[%emt 0:07:07]} Bc8 {[%emt 0:05:07]} 20. Rac1 {[%emt 0:01:29]} Qc7 {[%emt 0:06:35]} 21. Bf2 {[%emt 0:04:31]} Qb8 {[%emt 0:01:15]} 22. Kh2 {[%emt 0:04:15]} h5 {[%emt 0:02:07]} 23. e5 {[%emt 0:01:59]} Nd5 {[%emt 0:01:05]} 24. Ne4 {[%emt 0:01:05]} h4 {[%emt 0:03:50]} 25. Qe2 {[%emt 0:01:31]} hxg3+ {[%emt 0:00:51]} 26. Bxg3 {[%emt 0:00:04]} Bf8 {[%emt 0:05:38]} 27. Qg4 {[%emt 0:04:27]} Be7 {[%emt 0:01:25]} 28. Rd3 {[%emt 0:00:36]} Kg7 {[%emt 0:00:39]} 29. Qe2 {[%emt 0:11:44]} Rh8 {[%emt 0:02:13]} 30. Ng5 {[%emt 0:03:28]} Bxg5 {[%emt 0:10:20]} 31. fxg5 {[%emt 0:00:06]} Qa7 {[%emt 0:00:56]} 32. Qf2 {[%emt 0:03:14]} Kg8 {[%emt 0:04:14]} 33. Rf1 {[%emt 0:06:04]} Rh7 {[%emt 0:00:14]} 34. Be4 {[%emt 0:01:08]} b5 {[%emt 0:01:18]} 35. Rf3 {[%emt 0:01:50]} Qe7 {[%emt 0:00:32]} 36. h4 {[%emt 0:03:26]} Bb7 {[%emt 0:04:47]} 37. Kg2 {[%emt 0:00:39]} Rg7 {[%emt 0:01:58]} 38. h5 {[%emt 0:05:14]} gxh5 {[%emt 0:02:47]} 39. Bh4 {[%emt 0:00:07]} Rf8 {[%emt 0:02:17]} 40. g6 {[%emt 0:02:24]} Qd7 {[%emt 0:00:42]} 41. Kh2 {[%emt 0:16:47]} Qc7 {[%emt 0:03:28]} 42. Kh3 {[%emt 0:02:39]} c5 {[%emt 0:03:09]} 43. bxc5 {[%emt 0:01:00]} a5 {[%emt 0:00:29]} 44. Bf6 {[%emt 0:05:54]} Nxf6 {[%emt 0:03:14]} 45. exf6 {[%emt 0:00:04]} Rxg6 {[%emt 0:00:16]} 46. Bxg6 {[%emt 0:00:05]} Bxf3 {[%emt 0:00:11]} 47. Bxh5 {[%emt 0:00:47]} Bxh5 {[%emt 0:12:17]} 48. Qh4 {[%emt 0:00:20]} Rd8 {[%emt 0:01:08]} 49. Qxh5 {[%emt 0:00:32]} Rxd4 {[%emt 0:00:03]} 50. Rg1+ {[%emt 0:00:08]} 1-0

[Event "German Championship Women 2022"]
[Site "Magdeburg"]
[Date "2022.08.16"]
[Round "4.6"]
[White "Storkebaum, Ulrike"]
[Black "Fock, Sana"]
[Result "0-1"]
[ECO "B92"]
[WhiteElo "1768"]
[BlackElo "1807"]
[Annotator "NA RC"]
[PlyCount "88"]
[EventDate "2022.08.14"]
[EventType "swiss"]
[EventCountry "GER"]
[SourceTitle "playchess.com"]
[Source "ChessBase"]
[SourceQuality "1"]
[TimeControl "40/5400+30:1800+30"]

1. e4 {[%emt 0:00:03]} c5 {[%emt 0:00:04]} 2. Nf3 {[%emt 0:00:05]} d6 {[%emt 0:00:07]} 3. d4 {[%emt 0:00:06]} cxd4 {[%emt 0:00:07]} 4. Nxd4 {[%emt 0:00:06]} Nf6 {[%emt 0:00:06]} 5. Nc3 {[%emt 0:00:08]} a6 {[%emt 0:00:07]} 6. Be2 {[%emt 0:00:17]} e5 {[%emt 0:00:14]} 7. Nf3 {[%emt 0:00:59]} Be7 {[%emt 0:00:41]} 8. Bg5 {[%emt 0:01:58]} Be6 {[%emt 0:01:10]} 9. O-O {[%emt 0:01:15]} h6 {[%emt 0:04:56]} 10. Bxf6 {[%emt 0:00:33]} Bxf6 {[%emt 0:00:47]} 11. Nd5 {[%emt 0:00:09]} Be7 {[%emt 0:02:14]} 12. c4 {[%emt 0:01:11]} Nd7 {[%emt 0:05:32]} 13. Nd2 {[%emt 0:03:38]} O-O {[%emt 0:04:05]} 14. b4 {[%emt 0:02:29]} Rc8 {[%emt 0:08:37]} 15. Nxe7+ {[%emt 0:02:37]} Qxe7 {[%emt 0:00:09]} 16. Rc1 {[%emt 0:00:20]} Rfd8 {[%emt 0:07:58]} 17. a4 {[%emt 0:07:09]} b6 {[%emt 0:03:41]} 18. f4 {[%emt 0:13:31]} exf4 {[%emt 0:00:50]} 19. Rxf4 {[%emt 0:00:11]} Ne5 {[%emt 0:01:38]} 20. Qf1 {[%emt 0:01:29]} b5 {[%emt 0:08:03]} 21. axb5 {[%emt 0:04:01]} axb5 {[%emt 0:00:14]} 22. cxb5 {[%emt 0:00:43]} Qa7+ {[%emt 0:02:06]} 23. Kh1 {[%emt 0:00:48]} Rxc1 {[%emt 0:00:44]} 24. Qxc1 {[%emt 0:00:05]} Qe3 {[%emt 0:01:44]} 25. Rf1 {[%emt 0:16:31]} Qxe2 {[%emt 0:02:01]} 26. Qc7 {[%emt 0:00:32]} Rc8 {[%emt 0:04:56]} 27. Qxd6 {[%emt 0:03:04]} Qxb5 {[%emt 0:00:41]} 28. Ra1 {[%emt 0:02:40]} Nc4 {[%emt 0:03:54]} 29. Nxc4 {[%emt 0:06:43]} Qxc4 {[%emt 0:01:13]} 30. e5 {[%emt 0:03:31]} Qc1+ {[%emt 0:02:53]} 31. Qd1 {[%emt 0:00:08]} Qg5 {[%emt 0:01:37]} 32. Qd4 {[%emt 0:04:45]} Rc1+ {[%emt 0:01:29]} 33. Rxc1 {[%emt 0:00:04]} Qxc1+ {[%emt 0:00:06]} 34. Qg1 {[%emt 0:00:08]} Qxg1+ {[%emt 0:03:52]} 35. Kxg1 {[%emt 0:00:04]} Bd7 {[%emt 0:00:24]} 36. Kf2 {[%emt 0:00:11]} Kf8 {[%emt 0:00:09]} 37. Ke3 {[%emt 0:00:23]} Ke7 {[%emt 0:00:18]} 38. g3 {[%emt 0:01:52]} Ke6 {[%emt 0:00:39]} 39. Ke4 {[%emt 0:01:49]} Bc6+ {[%emt 0:00:53]} 40. Kd4 {[%emt 0:00:37]} Bb7 {[%emt 0:00:28]} 41. b5 {[%emt 0:31:09]} g6 {[%emt 0:30:44]} 42. b6 {[%emt 0:03:46]} Bd5 {[%emt 0:01:34]} 43. h3 {[%emt 0:01:35]} Bb7 {[%emt 0:00:25]} 44. h4 {[%emt 0:04:21]} h5 {[%emt 0:00:38]} 0-1

[Event "German Championship Women 2022"]
[Site "Magdeburg"]
[Date "2022.08.16"]
[Round "4.7"]
[White "Wartenberg, Alissa"]
[Black "Bluebaum, Johanna"]
[Result "0-1"]
[ECO "C11"]
[WhiteElo "1632"]
[BlackElo "2013"]
[Annotator "NA RC"]
[PlyCount "93"]
[EventDate "2022.08.14"]
[EventType "swiss"]
[EventCountry "GER"]
[SourceTitle "playchess.com"]
[Source "ChessBase"]
[SourceQuality "1"]
[TimeControl "40/5400+30:1800+30"]

1. e4 {[%emt 0:00:02]} e6 {[%emt 0:00:03]} 2. d4 {[%emt 0:00:06]} d5 {[%emt 0:00:05]} 3. Nc3 {[%emt 0:00:05]} Nf6 {[%emt 0:00:05]} 4. e5 {[%emt 0:00:06]} Nfd7 {[%emt 0:00:07]} 5. Nce2 {[%emt 0:00:11]} c5 {[%emt 0:01:24]} 6. c3 {[%emt 0:00:10]} Nc6 {[%emt 0:00:47]} 7. Nf3 {[%emt 0:00:33]} Qb6 {[%emt 0:05:46]} 8. Qc2 {[%emt 0:07:39]} Be7 {[%emt 0:05:10]} 9. Be3 {[%emt 0:05:55]} cxd4 {[%emt 0:04:33]} 10. cxd4 {[%emt 0:00:34]} f6 {[%emt 0:04:22]} 11. exf6 {[%emt 0:04:45]} Nxf6 {[%emt 0:02:20]} 12. a3 {[%emt 0:06:49]} O-O {[%emt 0:00:46]} 13. Nf4 {[%emt 0:02:17]} Bd7 {[%emt 0:27:58]} 14. Bd3 {[%emt 0:04:22]} Qa5+ {[%emt 0:14:29]} 15. Bd2 {[%emt 0:02:09]} Nb4 {[%emt 0:03:21]} 16. Bxb4 {[%emt 0:00:46]} Bxb4+ {[%emt 0:00:12]} 17. Ke2 {[%emt 0:00:11]} Bd6 {[%emt 0:00:52]} 18. g3 {[%emt 0:11:40]} Bxf4 {[%emt 0:06:31]} 19. gxf4 {[%emt 0:00:08]} Bb5 {[%emt 0:01:23]} 20. b4 {[%emt 0:03:51]} Qb6 {[%emt 0:02:49]} 21. Rhg1 {[%emt 0:06:16]} Rac8 {[%emt 0:00:45]} 22. Qb3 {[%emt 0:02:43]} Ne4 {[%emt 0:00:59]} 23. Rac1 {[%emt 0:01:16]} Qa6 {[%emt 0:02:53]} 24. Ne5 {[%emt 0:09:19]} Rxc1 {[%emt 0:01:46]} 25. Rxc1 {[%emt 0:00:07]} Rxf4 {[%emt 0:00:43]} 26. Rc8+ {[%emt 0:02:06]} Rf8 {[%emt 0:00:06]} 27. Rxf8+ {[%emt 0:00:04]} Kxf8 {[%emt 0:00:03]} 28. Nd7+ {[%emt 0:00:32]} Ke7 {[%emt 0:00:38]} 29. Nc5 {[%emt 0:00:46]} Nxc5 {[%emt 0:08:12]} 30. dxc5 {[%emt 0:04:33]} Bxd3+ {[%emt 0:01:33]} 31. Qxd3 {[%emt 0:00:04]} Qxd3+ {[%emt 0:00:14]} 32. Kxd3 {[%emt 0:00:06]} e5 {[%emt 0:00:19]} 33. f3 {[%emt 0:00:31]} g5 {[%emt 0:02:16]} 34. h3 {[%emt 0:00:15]} Kd7 {[%emt 0:00:16]} 35. a4 {[%emt 0:00:37]} a6 {[%emt 0:00:08]} 36. b5 {[%emt 0:06:05]} axb5 {[%emt 0:00:03]} 37. axb5 {[%emt 0:00:08]} h5 {[%emt 0:00:03]} 38. Ke3 {[%emt 0:01:03]} Ke6 {[%emt 0:01:03]} 39. Kd3 {[%emt 0:00:19]} d4 {[%emt 0:02:22]} 40. Kc4 {[%emt 0:01:20]} h4 {[%emt 0:00:18]} 41. Kb3 {[%emt 0:32:29]} Kd5 {[%emt 0:30:09]} 42. Kb4 {[%emt 0:00:16]} d3 {[%emt 0:00:24]} 43. c6 {[%emt 0:01:46]} bxc6 {[%emt 0:00:26]} 44. bxc6 {[%emt 0:00:27]} Kxc6 {[%emt 0:00:00]} 45. Kc3 {[%emt 0:00:00]} e4 {[%emt 0:00:00]} 46. fxe4 {[%emt 0:00:00]} g4 {[%emt 0:00:00]} 47. Kd4 0-1

[Event "German Championship Women 2022"]
[Site "Magdeburg"]
[Date "2022.08.16"]
[Round "4.8"]
[White "Just, Anita"]
[Black "Voigt, Anastasia"]
[Result "1-0"]
[ECO "C44"]
[WhiteElo "1905"]
[BlackElo "1694"]
[Annotator "NA RC"]
[PlyCount "79"]
[EventDate "2022.08.14"]
[EventType "swiss"]
[EventCountry "GER"]
[SourceTitle "playchess.com"]
[Source "ChessBase"]
[SourceQuality "1"]
[TimeControl "40/5400+30:1800+30"]

1. e4 {[%emt 0:00:01]} e5 {[%emt 0:00:04]} 2. Nf3 {[%emt 0:00:05]} Nc6 3. d4 {[%emt 0:00:38]} exd4 {[%emt 0:00:08]} 4. Nxd4 {[%emt 0:00:05]} Nf6 {[%emt 0:00:00]} 5. Nxc6 {[%emt 0:00:36]} bxc6 {[%emt 0:00:11]} 6. Bd3 {[%emt 0:00:30]} d5 {[%emt 0:05:36]} 7. exd5 {[%emt 0:06:08]} cxd5 {[%emt 0:00:06]} 8. O-O {[%emt 0:04:39]} Be7 {[%emt 0:01:44]} 9. Nc3 {[%emt 0:02:36]} O-O {[%emt 0:00:28]} 10. Bg5 {[%emt 0:03:36]} h6 {[%emt 0:00:53]} 11. Bh4 {[%emt 0:04:20]} Bb7 {[%emt 0:02:36]} 12. Re1 {[%emt 0:02:45]} d4 {[%emt 0:04:12]} 13. Bxf6 {[%emt 0:02:21]} Bxf6 {[%emt 0:00:34]} 14. Ne4 {[%emt 0:01:37]} Be7 {[%emt 0:15:03]} 15. Ng3 {[%emt 0:05:11]} g6 {[%emt 0:02:54]} 16. Qg4 {[%emt 0:11:16]} Kh7 {[%emt 0:09:50]} 17. f4 {[%emt 0:08:43]} Bf6 {[%emt 0:06:59]} 18. f5 {[%emt 0:10:18]} g5 {[%emt 0:01:05]} 19. Nh5 {[%emt 0:02:48]} Kh8 {[%emt 0:05:05]} 20. Re2 {[%emt 0:04:04]} Qd6 {[%emt 0:01:32]} 21. Rae1 {[%emt 0:00:51]} Bd5 {[%emt 0:01:08]} 22. Nxf6 {[%emt 0:06:58]} Qxf6 {[%emt 0:00:08]} 23. Re5 {[%emt 0:00:23]} Bc6 {[%emt 0:04:44]} 24. Qxd4 {[%emt 0:04:00]} Rae8 {[%emt 0:00:59]} 25. Qc3 {[%emt 0:01:04]} Rxe5 {[%emt 0:00:57]} 26. Rxe5 {[%emt 0:02:50]} Kg7 {[%emt 0:01:55]} 27. Rc5 {[%emt 0:00:46]} Bd7 {[%emt 0:02:37]} 28. Rxc7 {[%emt 0:02:33]} Qxc3 {[%emt 0:00:29]} 29. Rxc3 {[%emt 0:01:00]} Kf6 {[%emt 0:00:24]} 30. Rc7 {[%emt 0:01:28]} Bxf5 {[%emt 0:00:28]} 31. Bxf5 {[%emt 0:00:09]} Kxf5 {[%emt 0:00:05]} 32. Rxa7 {[%emt 0:00:07]} f6 {[%emt 0:00:12]} 33. Kf2 {[%emt 0:00:16]} Rd8 {[%emt 0:00:16]} 34. Ke2 {[%emt 0:01:12]} Ke4 {[%emt 0:00:35]} 35. Ra4+ {[%emt 0:00:38]} Ke5 {[%emt 0:00:14]} 36. Ke3 {[%emt 0:00:31]} Rd1 {[%emt 0:00:29]} 37. Ra5+ {[%emt 0:00:36]} Ke6 {[%emt 0:00:12]} 38. Rc5 {[%emt 0:01:01]} Rb1 {[%emt 0:00:25]} 39. b3 {[%emt 0:00:15]} Rb2 {[%emt 0:00:07]} 40. a4 {[%emt 0:00:27]} 1-0